fUSD/lending_fUSD_20250204
["ID","MTS","AMOUNT","RATE_DAILY","PERIOD"]
[351644648,1738683047192,-500.0,9.999e-05,2]
[351644650,1738683047202,-500.0,9.999e-05,2]
[351644652,1738683047212,-500.0,9.999e-05,2]
[351644654,1738683047223,-477.57844258,9.999e-05,2]
[351644656,1738683047232,-500.0,9.999e-05,2]
[351644658,1738683047242,-500.0,9.999e-05,2]
[351644660,1738683047252,-500.0,9.999e-05,2]
[351644662,1738683047261,-500.0,9.999e-05,2]
[351644665,1738683047273,-500.0,9.999e-05,2]
[351644667,1738683047283,-500.0,9.999e-05,2]
[351644668,1738683047292,-500.0,9.999e-05,2]
[351644670,1738683047302,-500.0,9.999e-05,2]
[351644673,1738683047312,-500.0,9.999e-05,2]
[351644675,1738683047322,-500.0,9.999e-05,2]
[351644676,1738683047331,-500.0,9.999e-05,2]
[351644679,1738683047341,-500.0,9.999e-05,2]
[351644681,1738683047351,-565.30440182,9.999e-05,2]
[351644682,1738683047360,-500.0,9.999e-05,2]
[351644683,1738683047370,-500.0,9.999e-05,2]
[351644684,1738683047385,-500.0,9.999e-05,2]
[351644685,1738683047395,-500.0,9.999e-05,2]
[351644686,1738683047404,-500.0,9.999e-05,2]
[351644687,1738683047415,-497.50901249,9.999e-05,2]
[351644688,1738683047424,-500.0,9.999e-05,2]
[351644689,1738683047435,-500.0,9.999e-05,2]
[351644690,1738683047444,-500.0,9.999e-05,2]
[351644691,1738683047454,-500.0,9.999e-05,2]
[351644692,1738683047464,-500.0,9.999e-05,2]
[351644693,1738683047474,-500.0,9.999e-05,2]
[351644694,1738683047484,-500.0,9.999e-05,2]
[351644695,1738683047494,-500.0,9.999e-05,2]
[351644696,1738683047504,-500.0,9.999e-05,2]
[351644697,1738683047514,-500.0,9.999e-05,2]
[351644698,1738683047528,-500.0,9.999e-05,2]
[351644699,1738683047538,-500.0,9.999e-05,2]
[351644700,1738683047547,-500.0,9.999e-05,2]
[351644701,1738683047557,-500.0,9.999e-05,2]
[351644704,1738683047567,-500.0,9.999e-05,2]
[351644705,1738683047576,-500.0,9.999e-05,2]
[351644706,1738683047586,-500.0,9.999e-05,2]
[351644707,1738683047597,-500.0,9.999e-05,2]
[351644708,1738683047607,-500.0,9.999e-05,2]
[351644709,1738683047617,-500.0,9.999e-05,2]
[351644710,1738683047628,-500.0,9.999e-05,2]
[351644711,1738683047637,-500.0,9.999e-05,2]
[351644712,1738683047647,-500.0,9.999e-05,2]
[351644713,1738683047657,-500.0,9.999e-05,2]
[351644714,1738683047666,-500.0,9.999e-05,2]
[351644715,1738683047676,-500.0,9.999e-05,2]
[351644716,1738683047685,-500.0,9.999e-05,2]
[351644717,1738683047695,-500.0,9.999e-05,2]
[351644718,1738683047705,-512.1906315,9.999e-05,2]
[351644719,1738683047715,-500.0,9.999e-05,2]
[351644720,1738683047724,-500.0,9.999e-05,2]
[351644721,1738683047734,-500.0,9.999e-05,2]
[351644722,1738683047744,-500.0,9.999e-05,2]
[351644723,1738683047754,-500.0,9.999e-05,2]
[351644724,1738683047764,-500.0,9.999e-05,2]
[351644725,1738683047778,-500.0,9.999e-05,2]
[351644726,1738683047788,-500.0,9.999e-05,2]
[351644727,1738683047799,-500.0,9.999e-05,2]
[351644728,1738683047809,-500.0,9.999e-05,2]
[351644729,1738683047819,-521.83844576,9.999e-05,2]
[351644730,1738683047830,-503.13034414,9.999e-05,2]
[351644731,1738683047840,-551.14487755,9.999e-05,2]
[351644732,1738683047850,-500.0,9.999e-05,2]
[351644734,1738683047860,-500.0,9.999e-05,2]
[351644736,1738683047872,-316.26891589,9.999e-05,2]
[351644738,1738683047881,-500.0,9.999e-05,2]
[351644739,1738683047890,-500.0,9.999e-05,2]
[351644740,1738683047900,-500.0,9.999e-05,2]
[351644741,1738683047910,-646.73,9.999e-05,2]
[351644742,1738683047920,-500.0,9.999e-05,2]
[351644743,1738683047930,-500.0,9.999e-05,2]
[351644744,1738683047940,-500.0,9.999e-05,2]
[351644745,1738683047950,-533.1814503,9.999e-05,2]
[351644746,1738683047961,-500.0,9.999e-05,2]
[351644747,1738683047971,-500.0,9.999e-05,2]
[351644748,1738683047981,-500.0,9.999e-05,2]
[351644749,1738683047990,-500.0,9.999e-05,2]
[351644750,1738683048001,-220.0298671,9.999e-05,2]
[351644751,1738683048011,-500.0,9.999e-05,2]
[351644752,1738683048023,-500.0,9.999e-05,2]
[351644753,1738683048033,-500.0,9.999e-05,2]
[351644754,1738683048043,-500.0,9.999e-05,2]
[351644755,1738683048053,-500.0,9.999e-05,2]
[351644756,1738683048063,-191.27405906,9.999e-05,2]
[351644757,1738683048073,-500.0,9.999e-05,2]
[351644758,1738683048082,-500.0,9.999e-05,2]
[351644759,1738683048093,-500.0,9.999e-05,2]
[351644760,1738683048103,-500.0,9.999e-05,2]
[351644761,1738683048112,-500.0,9.999e-05,2]
[351644762,1738683048122,-500.0,9.999e-05,2]
[351644763,1738683048132,-500.0,9.999e-05,2]
[351644764,1738683048142,-500.0,9.999e-05,2]
[351644765,1738683048152,-500.0,9.999e-05,2]
[351644766,1738683048163,-500.0,9.999e-05,2]
[351644767,1738683048173,-500.0,9.999e-05,2]
[351644768,1738683048183,-500.0,9.999e-05,2]
[351644769,1738683048192,-500.0,9.999e-05,2]
[351644770,1738683048202,-500.0,9.999e-05,2]
[351644771,1738683048212,-500.0,9.999e-05,2]
[351644772,1738683048223,-500.0,9.999e-05,2]
[351644773,1738683048233,-500.0,9.999e-05,2]
[351644774,1738683048243,-509.25071384,9.999e-05,2]
[351644775,1738683048253,-500.0,9.999e-05,2]
[351644776,1738683048263,-500.0,9.999e-05,2]
[351644777,1738683048275,-500.0,9.999e-05,2]
[351644778,1738683048285,-500.0,9.999e-05,2]
[351644779,1738683048295,-500.0,9.999e-05,2]
[351644780,1738683048306,-500.0,9.999e-05,2]
[351644781,1738683048316,-500.0,9.999e-05,2]
[351644782,1738683048327,-500.0,9.999e-05,2]
[351644783,1738683048338,-503.47500847,9.999e-05,2]
[351644784,1738683048349,-500.0,9.999e-05,2]
[351644785,1738683048359,-500.0,9.999e-05,2]
[351644786,1738683048371,-500.0,9.999e-05,2]
[351644787,1738683048383,-500.0,9.999e-05,2]
[351644788,1738683048394,-500.0,9.999e-05,2]
[351644789,1738683048405,-500.0,9.999e-05,2]
[351644790,1738683048415,-500.0,9.999e-05,2]
[351644791,1738683048426,-500.0,9.999e-05,2]
[351644792,1738683048436,-500.0,9.999e-05,2]
[351644793,1738683048446,-500.0,9.999e-05,2]
[351644794,1738683048457,-500.0,9.999e-05,2]
[351644795,1738683048467,-500.0,9.999e-05,2]
[351644796,1738683048477,-500.0,9.999e-05,2]
[351644797,1738683048487,-500.0,9.999e-05,2]
[351644798,1738683048497,-500.0,9.999e-05,2]
[351644799,1738683048507,-500.0,9.999e-05,2]
[351644800,1738683048520,-500.0,9.999e-05,2]
[351644801,1738683048530,-500.0,9.999e-05,2]
[351644802,1738683048540,-500.0,9.999e-05,2]
[351644803,1738683048550,-500.0,9.999e-05,2]
[351644804,1738683048561,-500.0,9.999e-05,2]
[351644805,1738683048571,-500.0,9.999e-05,2]
[351644806,1738683048582,-500.0,9.999e-05,2]
[351644807,1738683048592,-466.15009537,9.999e-05,2]
[351644808,1738683048828,-500.0,9.999e-05,2]
[351644809,1738683048849,-500.0,9.999e-05,2]
[351644810,1738683048862,-500.0,9.999e-05,2]
[351644811,1738683048872,-206.49082206,9.999e-05,2]
[351644812,1738683048883,-500.0,9.999e-05,2]
[351644813,1738683048892,-500.0,9.999e-05,2]
[351644814,1738683048902,-500.0,9.999e-05,2]
[351644815,1738683048912,-500.0,9.999e-05,2]
[351644816,1738683048922,-500.0,9.999e-05,2]
[351644817,1738683048932,-500.0,9.999e-05,2]
[351644818,1738683048942,-500.0,9.999e-05,2]
[351644819,1738683048954,-500.0,9.999e-05,2]
[351644820,1738683048964,-500.0,9.999e-05,2]
[351644821,1738683048974,-518.03228226,9.999e-05,2]
[351644822,1738683048984,-500.0,9.999e-05,2]
[351644823,1738683048994,-519.54900645,9.999e-05,2]
[351644824,1738683049004,-500.0,9.999e-05,2]
[351644825,1738683049015,-500.0,9.999e-05,2]
[351644826,1738683049031,-500.0,9.999e-05,2]
[351644827,1738683049042,-500.0,9.999e-05,2]
[351644828,1738683049052,-500.0,9.999e-05,2]
[351644829,1738683049063,-500.0,9.999e-05,2]
[351644830,1738683049075,-500.0,9.999e-05,2]
[351644831,1738683049085,-500.0,9.999e-05,2]
[351644832,1738683049095,-1323.77,9.999e-05,2]
[351644833,1738683049105,-500.0,9.999e-05,2]
[351644834,1738683049116,-500.0,9.999e-05,2]
[351644835,1738683049126,-509.96755594,9.999e-05,2]
[351644836,1738683049136,-500.0,9.999e-05,2]
[351644837,1738683049145,-2625.56,9.999e-05,2]
[351644838,1738683049155,-500.0,9.999e-05,2]
[351644839,1738683049164,-500.0,9.999e-05,2]
[351644840,1738683049173,-500.0,9.999e-05,2]
[351644841,1738683049182,-500.0,9.999e-05,2]
[351644842,1738683049191,-500.0,9.999e-05,2]
[351644843,1738683049200,-500.0,9.999e-05,2]
[351644844,1738683049210,-500.0,9.999e-05,2]
[351644845,1738683049220,-500.0,9.999e-05,2]
[351644846,1738683049230,-500.0,9.999e-05,2]
[351644847,1738683049240,-500.0,9.999e-05,2]
[351644848,1738683049249,-500.0,9.999e-05,2]
[351644849,1738683049259,-500.0,9.999e-05,2]
[351644850,1738683049274,-500.0,9.999e-05,2]
[351644851,1738683049283,-500.0,9.999e-05,2]
[351644852,1738683049292,-500.0,9.999e-05,2]
[351644853,1738683049303,-456.1,9.999e-05,2]
[351644854,1738683049313,-500.0,9.999e-05,2]
[351644855,1738683049322,-500.0,9.999e-05,2]
[351644856,1738683049331,-226.79861655,9.999e-05,2]
[351644857,1738683049341,-507.45,9.999e-05,2]
[351644858,1738683049350,-500.0,9.999e-05,2]
[351644859,1738683049360,-500.0,9.999e-05,2]
[351644860,1738683049371,-500.0,9.999e-05,2]
[351644861,1738683049381,-490.01583625,9.999e-05,2]
[351644862,1738683049390,-500.0,9.999e-05,2]
[351644863,1738683049399,-500.0,9.999e-05,2]
[351644864,1738683049409,-500.0,9.999e-05,2]
[351644865,1738683049418,-1020.67,9.999e-05,2]
[351644866,1738683049428,-500.0,9.999e-05,2]
[351644867,1738683049438,-500.0,9.999e-05,2]
[351644868,1738683049448,-500.0,9.999e-05,2]
[351644869,1738683049457,-500.0,9.999e-05,2]
[351644870,1738683049467,-500.0,9.999e-05,2]
[351644871,1738683049477,-500.0,9.999e-05,2]
[351644872,1738683049487,-500.0,9.999e-05,2]
[351644873,1738683049497,-500.0,9.999e-05,2]
[351644874,1738683049507,-562.0,9.999e-05,2]
[351644875,1738683049522,-500.0,9.999e-05,2]
[351644876,1738683049534,-534.72242111,9.999e-05,2]
[351644877,1738683049545,-500.0,9.999e-05,2]
[351644878,1738683049555,-500.0,9.999e-05,2]
[351644879,1738683049565,-552.85609318,9.999e-05,2]
[351644880,1738683049575,-500.0,9.999e-05,2]
[351644881,1738683049585,-500.0,9.999e-05,2]
[351644882,1738683049595,-500.0,9.999e-05,2]
[351644883,1738683049606,-300.0,9.999e-05,2]
[351644884,1738683049615,-500.0,9.999e-05,2]
[351644885,1738683049625,-500.0,9.999e-05,2]
[351644886,1738683049635,-500.0,9.999e-05,2]
[351644887,1738683049646,-500.0,9.999e-05,2]
[351644888,1738683049656,-706.79,9.999e-05,2]
[351644889,1738683049666,-500.0,9.999e-05,2]
[351644890,1738683049675,-500.0,9.999e-05,2]
[351644891,1738683049685,-729.31,9.999e-05,2]
[351644892,1738683049695,-507.28050774,9.999e-05,2]
[351644893,1738683049704,-620.06345253,9.999e-05,2]
[351644894,1738683049714,-500.0,9.999e-05,2]
[351644895,1738683049724,-500.0,9.999e-05,2]
[351644896,1738683049734,-500.0,9.999e-05,2]
[351644897,1738683049744,-305.53014975,9.999e-05,2]
[351644898,1738683049755,-1000.0,9.999e-05,2]
[351644899,1738683049765,-500.0,9.999e-05,2]
[351644900,1738683049779,-856.83,9.999e-05,2]
[351644901,1738683049790,-500.0,9.999e-05,2]
[351644902,1738683049802,-500.0,9.999e-05,2]
[351644903,1738683049812,-500.0,9.999e-05,2]
[351644904,1738683049822,-500.0,9.999e-05,2]
[351644905,1738683049832,-500.0,9.999e-05,2]
[351644906,1738683049842,-500.0,9.999e-05,2]
[351644907,1738683049852,-794.68,9.999e-05,2]
[351644908,1738683049862,-500.0,9.999e-05,2]
[351644909,1738683049873,-500.0,9.999e-05,2]
[351644910,1738683049883,-500.0,9.999e-05,2]
[351644911,1738683049894,-500.0,9.999e-05,2]
[351644912,1738683049903,-500.0,9.999e-05,2]
[351644913,1738683049914,-917.43,9.999e-05,2]
[351644914,1738683049923,-500.0,9.999e-05,2]
[351644915,1738683049933,-500.0,9.999e-05,2]
[351644916,1738683049943,-500.0,9.999e-05,2]
[351644917,1738683049953,-500.0,9.999e-05,2]
[351644918,1738683049964,-500.0,9.999e-05,2]
[351644919,1738683049974,-500.0,9.999e-05,2]
[351644920,1738683049985,-500.0,9.999e-05,2]
[351644921,1738683049995,-500.0,9.999e-05,2]
[351644922,1738683050005,-500.0,9.999e-05,2]
[351644923,1738683050016,-500.0,9.999e-05,2]
[351644924,1738683050031,-500.0,9.999e-05,2]
[351644925,1738683050041,-500.0,9.999e-05,2]
[351644926,1738683050051,-500.0,9.999e-05,2]
[351644927,1738683050060,-500.0,9.999e-05,2]
[351644928,1738683050070,-500.0,9.999e-05,2]
[351644929,1738683050080,-500.0,9.999e-05,2]
[351644930,1738683050090,-500.0,9.999e-05,2]
[351644931,1738683050100,-500.0,9.999e-05,2]
[351644932,1738683050110,-781.0,0.0001,2]
[351644933,1738683050120,-1202226.59538972,0.0001,2]
[351644934,1738683050449,-1250.96724705,0.0001,2]
[351644935,1738683050496,-150.0,8.774e-05,2]
[351644936,1738683050505,-2670.812805,0.0001,2]
[351644937,1738683050517,-1936.29596214,0.0001,2]
[351644938,1738683050571,150.0,7.804e-05,2]
[351644939,1738683050868,-150.0,8.019e-05,2]
[351644940,1738683050878,-150.0,8.236e-05,2]
[351644941,1738683050887,-150.0,8.334e-05,2]
[351644942,1738683050896,-150.0,8.407e-05,2]
[351644943,1738683050906,-150.0,8.598e-05,2]
[351644944,1738683050915,-150.0,8.755e-05,2]
[351644945,1738683050925,-500.0,9.61e-05,2]
[351644946,1738683050934,-150.0,9.623e-05,2]
[351644947,1738683050944,-500.0,9.746e-05,2]
[351644948,1738683050954,-709.47,9.746e-05,2]
[351644949,1738683050965,-500.0,9.747e-05,2]
[351644950,1738683050975,-304.40639347,9.883e-05,2]
[351644951,1738683050986,-709.47,9.883e-05,2]
[351644952,1738683050998,-150.0,9.937e-05,2]
[351644953,1738683051008,-150.0,9.98e-05,2]
[351644954,1738683051018,-15393.94423991,0.0001,2]
[351644955,1738683051114,-150.0,9.996e-05,2]
[351644956,1738683051124,-457.97363732,0.0001,2]
[351644957,1738683051136,-2856.37502191,0.0001,2]
[351644958,1738683051148,-1850.9311271,0.0001,2]
[351644959,1738683051159,-1155.0,0.0001,2]
[351644960,1738683051345,-500.0,9.884e-05,2]
[351644961,1738683051355,-500.0,9.999e-05,2]
[351644962,1738683051366,-170071.15946241,0.0001,2]
[351644963,1738683051378,-16862.68071012,0.0001,2]
[351644964,1738683051389,-500.0,0.0001,2]
[351644965,1738683051401,-1334.63315752,0.0001,2]
[351644966,1738683051434,-500.0,9.61e-05,2]
[351644967,1738683051444,-1474.03291217,0.0001,2]
[351644968,1738683051456,-9315.63957483,0.0001,2]
[351644969,1738683051507,-500.0,9.61e-05,2]
[351644970,1738683051516,-500.0,9.747e-05,2]
[351644971,1738683051529,-5832.28137135,0.0001,2]
[351644972,1738683051788,150.0,7.984e-05,2]
[351644973,1738683051835,-150.0,9.001e-05,2]
[351644974,1738683051844,-150.0,9.183e-05,2]
[351644975,1738683051853,-500.0,9.61e-05,2]
[351644976,1738683051862,-229.94312625,9.747e-05,2]
[351644977,1738683051910,-500.0,9.746e-05,2]
[351644978,1738683051920,-270.05687375,9.747e-05,2]
[351644979,1738683051930,-500.0,9.747e-05,2]
[351644980,1738683051939,-484.79884215,9.884e-05,2]
[351644981,1738683051987,-337.30143397,9.883e-05,2]
[351644982,1738683052475,-1176.5446,9.474e-05,2]
[351644983,1738683052484,-150.0,9.601e-05,2]
[351644984,1738683052494,-500.0,9.61e-05,2]
[351644985,1738683052504,-482.9860934,9.611e-05,2]
[351644986,1738683052513,-500.0,9.611e-05,2]
[351644987,1738683052526,-500.0,9.611e-05,2]
[351644988,1738683052536,-500.0,9.611e-05,2]
[351644989,1738683052546,-500.0,9.611e-05,2]
[351644990,1738683052556,-551.83430096,9.611e-05,2]
[351644991,1738683052566,-404.17697157,9.611e-05,2]
[351644992,1738683052575,-500.0,9.747e-05,2]
[351644993,1738683052585,-162.69856603,9.883e-05,2]
[351644994,1738683052594,-15.20115785,9.884e-05,2]
[351644995,1738683052604,-500.0,9.884e-05,2]
[351644996,1738683052613,-500.0,9.884e-05,2]
[351644997,1738683052623,-150.0,9.971e-05,2]
[351644998,1738683052632,-2443.14488479,0.0001,2]
[351644999,1738683052889,-150.0,8.041e-05,2]
[351645000,1738683052898,-150.0,8.858e-05,2]
[351645001,1738683052908,-285.07301889,9.61e-05,2]
[351645002,1738683053387,-214.92698111,9.61e-05,2]
[351645003,1738683053396,-78.6751056,9.61e-05,2]
[351645004,1738683053408,-421.3248944,9.61e-05,2]
[351645005,1738683053417,-500.0,9.61e-05,2]
[351645006,1738683053427,-500.0,9.61e-05,2]
[351645007,1738683053437,-500.0,9.611e-05,2]
[351645008,1738683053447,-500.0,9.746e-05,2]
[351645009,1738683053456,-500.0,9.747e-05,2]
[351645010,1738683053466,-500.0,9.748e-05,2]
[351645011,1738683053477,-500.0,9.883e-05,2]
[351645012,1738683053487,-500.0,9.884e-05,2]
[351645013,1738683053498,-500.0,9.885e-05,2]
[351645014,1738683053508,-27.8751056,9.999e-05,2]
[351645015,1738683053520,-472.1248944,9.999e-05,2]
[351645016,1738683053532,-8786.36156817,0.0001,2]
[351645017,1738683053543,-393478.16567127,0.0001,2]
[351645018,1738683053554,-1850.50522938,0.0001,2]
[351645019,1738683053564,-44702.56951806,0.0001,2]
[351645020,1738683053590,-150.0,9.539e-05,2]
[351645021,1738683053600,-27544.546764,0.0001,2]
[351645022,1738683053661,-500.0,9.747e-05,2]
[351645023,1738683053671,-48843.67208245,0.0001,2]
[351645024,1738683053683,-756.63503238,0.0001,2]
[351645025,1738683053695,-4936.45,0.0001,2]
[351645026,1738683053712,-10159.68,0.0001,2]
[351645027,1738683053724,-5558.64470409,0.0001,2]
[351645028,1738683054649,150.0,7.69e-05,2]
[351645029,1738683067569,150.0,7.674e-05,2]
[351645032,1738683408868,500.0,9.61e-05,30]
[351645036,1738683839519,1000.0,7.901e-05,2]
[351645038,1738684019532,232.65332889,6.913e-05,2]
[351645041,1738684232864,-327.07,8.219e-05,2]
[351645042,1738684232874,-789.21322968,8.219e-05,2]
[351645043,1738684232889,-400.0,8.219e-05,2]
[351645044,1738684232984,-409.12677032,8.219e-05,2]
[351645045,1738684232994,-164.22,8.272e-05,2]
[351645046,1738684233003,-181.71,8.319e-05,2]
[351645047,1738684233012,-943.97598263,8.336e-05,2]
[351645054,1738684238590,-56.02401737,8.336e-05,2]
[351645055,1738684238600,-1000.0,8.546e-05,2]
[351645056,1738684238610,-1394.05184703,8.6e-05,2]
[351645057,1738684238619,-150.0,8.685e-05,2]
[351645058,1738684238628,-300.0,8.698e-05,2]
[351645059,1738684238638,-2037.1241356,8.76e-05,2]
[351645060,1738684238649,-2481.77378464,8.76e-05,2]
[351645061,1738684238788,-3163.2185652,8.76e-05,2]
[351645062,1738684238797,-6688.32606257,8.769e-05,2]
[351645063,1738684238986,-993.79042287,8.769e-05,2]
[351645064,1738684238996,-7537.01684835,8.771e-05,2]
[351645065,1738684239009,-145.09963709,8.771e-05,2]
[351645066,1738684239020,-7682.11648544,8.772e-05,2]
[351645067,1738684239030,-150.0,8.835e-05,2]
[351645068,1738684239041,-1844.5748,8.836e-05,2]
[351645069,1738684239051,-72.80907747,8.836e-05,2]
[351645070,1738684239063,-3600.0,8.836e-05,2]
[351645071,1738684239076,-5337.06,8.836e-05,2]
[351645072,1738684239087,-25222.21142485,8.836e-05,2]
[351645073,1738684239201,-5858.15038251,8.836e-05,2]
[351645211,1738684240473,-731.31115522,8.836e-05,2]
[351645236,1738684240662,-271.37002482,8.836e-05,2]
[351645238,1738684240673,-2978.80506584,8.836e-05,2]
[351645240,1738684240684,-29934.69846929,8.836e-05,2]
[351645242,1738684240697,-500.0,8.851e-05,2]
[351645244,1738684240707,-2500.0,8.851e-05,2]
[351645246,1738684240717,-37344.3308,8.973e-05,2]
[351645248,1738684240727,-283.6417,8.973e-05,2]
[351645250,1738684240736,-500.0,9.004e-05,2]
[351645252,1738684240745,-150.0,9.019e-05,2]
[351645254,1738684240755,-1549.3,9.041e-05,2]
[351645256,1738684240764,-878.68,9.041e-05,2]
[351645258,1738684240774,-500.0,9.041e-05,2]
[351645260,1738684240782,-500.0,9.041e-05,2]
[351645263,1738684240795,-150.0,9.061e-05,2]
[351645265,1738684240804,-150.0,9.071e-05,2]
[351645267,1738684240814,-150.0,9.145e-05,2]
[351645269,1738684240824,-150.0,9.159e-05,2]
[351645271,1738684240833,-438.52,9.178e-05,2]
[351645272,1738684240843,-150.0,9.178e-05,2]
[351645274,1738684240853,-150.0,9.178e-05,2]
[351645277,1738684240863,-150.0,9.178e-05,2]
[351645278,1738684240873,-150.0,9.178e-05,2]
[351645280,1738684240884,-5000.0,9.3e-05,2]
[351645282,1738684240895,-150.0,9.351e-05,2]
[351645284,1738684240906,-1000.0,9.378e-05,2]
[351645287,1738684240916,-150.0,9.383e-05,2]
[351645289,1738684240926,-150.0,9.405e-05,2]
[351645291,1738684240936,-500.0,9.562e-05,2]
[351645292,1738684240949,-420.0,9.568e-05,2]
[351645294,1738684240959,-600.0,9.6e-05,3]
[351645296,1738684240968,-283.53714455,9.608e-05,2]
[351645298,1738684240977,-831.47,9.608e-05,2]
[351645300,1738684240986,-565.56,9.608e-05,2]
[351645302,1738684240995,-500.0,9.608e-05,2]
[351645304,1738684241005,-500.0,9.608e-05,2]
[351645306,1738684241014,-1677.19,9.608e-05,2]
[351645333,1738684241258,-1630.47,9.608e-05,2]
[351645335,1738684241269,-534.35891959,9.608e-05,2]
[351645337,1738684241279,-1030.85,9.608e-05,2]
[351645339,1738684241288,-1109.51,9.608e-05,2]
[351645341,1738684241297,-949.8,9.608e-05,2]
[351645343,1738684241307,-500.0,9.608e-05,2]
[351645345,1738684241316,-500.0,9.608e-05,2]
[351645347,1738684241325,-718.16,9.608e-05,2]
[351645349,1738684241334,-1155.04,9.608e-05,2]
[351645351,1738684241344,-1579.5,9.608e-05,2]
[351645353,1738684241354,-1966.48,9.608e-05,2]
[351645355,1738684241364,-1086.24,9.608e-05,2]
[351645357,1738684241373,-1178.15,9.608e-05,2]
[351645359,1738684241382,-500.0,9.608e-05,2]
[351645361,1738684241392,-500.0,9.608e-05,2]
[351645363,1738684241403,-2763.26,9.608e-05,2]
[351645365,1738684241414,-845.35,9.608e-05,2]
[351645367,1738684241424,-500.0,9.608e-05,2]
[351645369,1738684241435,-500.0,9.608e-05,2]
[351645371,1738684241448,-500.0,9.608e-05,2]
[351645373,1738684241458,-767.47,9.608e-05,2]
[351645375,1738684241467,-500.0,9.608e-05,2]
[351645377,1738684241477,-500.0,9.608e-05,2]
[351645379,1738684241487,-500.0,9.608e-05,2]
[351645381,1738684241496,-942.66,9.608e-05,2]
[351645383,1738684241506,-1320.18,9.608e-05,2]
[351645386,1738684241516,-500.0,9.608e-05,2]
[351645388,1738684241526,-500.0,9.608e-05,2]
[351645390,1738684241535,-500.0,9.608e-05,2]
[351645392,1738684241545,-500.0,9.608e-05,2]
[351645394,1738684241555,-613.95,9.608e-05,2]
[351645395,1738684241564,-500.0,9.608e-05,2]
[351645397,1738684241573,-500.0,9.609e-05,2]
[351645400,1738684241583,-500.0,9.609e-05,2]
[351645402,1738684241592,-500.0,9.609e-05,2]
[351645404,1738684241602,-500.64905282,9.609e-05,2]
[351645406,1738684241610,-500.0,9.609e-05,2]
[351645408,1738684241619,-500.0,9.609e-05,2]
[351645409,1738684241628,-500.0,9.609e-05,2]
[351645411,1738684241638,-500.0,9.609e-05,2]
[351645412,1738684241646,-500.0,9.609e-05,2]
[351645413,1738684241655,-500.0,9.609e-05,2]
[351645414,1738684241666,-500.0,9.609e-05,2]
[351645415,1738684241675,-253.40489674,9.609e-05,2]
[351645416,1738684241684,-500.0,9.609e-05,2]
[351645417,1738684241698,-500.0,9.609e-05,2]
[351645418,1738684241708,-500.0,9.609e-05,2]
[351645419,1738684241717,-500.62622198,9.609e-05,2]
[351645420,1738684241727,-500.0,9.609e-05,2]
[351645421,1738684241736,-500.0,9.609e-05,2]
[351645422,1738684241745,-500.0,9.609e-05,2]
[351645424,1738684241756,-500.0,9.609e-05,2]
[351645426,1738684241765,-500.0,9.609e-05,2]
[351645428,1738684241774,-500.0,9.609e-05,2]
[351645430,1738684241783,-500.0,9.609e-05,2]
[351645432,1738684241792,-500.0,9.609e-05,2]
[351645434,1738684241802,-500.0,9.609e-05,2]
[351645436,1738684241812,-500.0,9.609e-05,2]
[351645438,1738684241823,-500.0,9.609e-05,2]
[351645440,1738684241833,-500.0,9.609e-05,2]
[351645442,1738684241842,-500.0,9.609e-05,2]
[351645444,1738684241852,-500.0,9.609e-05,2]
[351645446,1738684241861,-581.37191801,9.609e-05,2]
[351645448,1738684241870,-500.0,9.609e-05,2]
[351645450,1738684241880,-580.32462573,9.609e-05,2]
[351645452,1738684241889,-501.13646855,9.609e-05,2]
[351645454,1738684241899,-500.0,9.609e-05,2]
[351645456,1738684241908,-500.0,9.609e-05,2]
[351645458,1738684241917,-500.0,9.609e-05,2]
[351645460,1738684241927,-500.0,9.609e-05,2]
[351645462,1738684241936,-500.0,9.609e-05,2]
[351645464,1738684241948,-500.0,9.609e-05,2]
[351645466,1738684241955,-500.0,9.609e-05,2]